bitfinex/quotes_ETHUSD_20240711
["timestamp","ask_amount","ask_price","bid_price","bid_amount"]
[1720717529142,1.56480261,3131.6,3131.3,1.49681494]
[1720717529346,0.45849604,3131.9,3131.1,1.49681494]
[1720717529634,0.45849604,3131.9,3131.7,1.49681494]
[1720717529635,1.10613613,3131.8,3131.7,1.49681494]
[1720717529836,0.45849604,3132.2,3131.3,3.19349]
[1720717530008,0.45849604,3132.6,3131.3,3.19349]
[1720717530212,1.39183627,3132.5,3131.7,1.49681494]
[1720717530420,1.56454271,3132.4,3131.7,1.49681494]
[1720717530630,2.3994,3133.2,3131.7,1.49681494]
[1720717530828,0.45849604,3132.9,3132.3,1.49681494]
[1720717531050,1.1059138,3133.1,3132.4,0.06384827]
[1720717531232,2.3994,3133.7,3132.7,4.68893494]
[1720717531548,2.3994,3133.7,3132.7,1.49681494]
[1720717531549,0.3337844,3133.5,3132.7,1.49681494]
[1720717531726,1.34556405,3133.6,3132.8,0.08509438]
[1720717531945,1.10568686,3133.5,3132.5,1.49681494]
[1720717532170,1.10568686,3133.5,3132.6,0.08465193]
[1720717532171,3.19163,3133.2,3132.6,0.08465193]
[1720717532331,3.19163,3133.2,3131.1,8.9755507]
[1720717532332,3.19191,3133.0,3132.0,1.49681494]
[1720717532525,4.3022431,3132.9,3132.0,1.49681494]
[1720717532716,3.0,3133.1,3132.0,1.49681494]
[1720717532969,5.50786,3132.9,3132.1,0.08464164]
[1720717533135,3.0,3132.8,3132.1,0.08464164]
[1720717533665,3.19223,3132.6,3132.1,0.08464164]
[1720717533821,3.45849604,3132.5,3131.7,1.49681494]
[1720717534024,0.6650726,3132.4,3131.7,1.49681494]
[1720717534226,0.6650726,3132.4,3131.9,1.49681494]
[1720717534424,3.0,3132.4,3132.1,1.49681494]
[1720717534658,0.45849604,3132.5,3132.1,1.49681494]
[1720717534834,0.45849604,3132.5,3132.2,0.08462058]
[1720717535165,3.013,3133.4,3132.2,0.08462058]
[1720717535166,2.409,3133.5,3132.2,2.3896]
[1720717535466,0.29827538,3133.4,3132.9,1.49681494]
[1720717535756,0.29827538,3133.4,3133.0,0.08434438]
[1720717535988,0.45849604,3133.5,3133.0,0.08434438]
[1720717536157,0.45849604,3133.5,3132.9,1.49681494]
[1720717536356,0.79224179,3134.0,3133.1,0.08430987]
[1720717536557,0.33374575,3134.0,3133.1,1.49681494]
[1720717536762,3.19103,3133.8,3133.2,0.08427536]
[1720717536975,15.930499,3133.7,3132.5,1.49681494]
[1720717537186,3.319103,3133.7,3133.3,0.08424085]
[1720717537385,11.075194,3133.6,3132.5,1.49681494]
[1720717537548,6.19131,3133.5,3133.4,0.08420634]
[1720717537887,6.19131,3133.5,3132.7,1.49681494]
[1720717537888,6.952445,3133.5,3132.7,1.49681494]
[1720717538083,0.6952445,3133.4,3132.7,1.49681494]
[1720717538252,0.6952445,3133.4,3132.8,0.08441342]
[1720717538685,0.6952445,3133.4,3132.5,1.49681494]
[1720717538985,0.6952445,3133.4,3132.7,1.49681494]
[1720717539184,0.319103,3133.7,3132.7,1.49681494]
[1720717539185,3.319103,3133.7,3132.7,1.49681494]
[1720717539489,6.510283,3133.7,3132.8,0.08441342]
[1720717539792,3.319103,3133.7,3132.9,1.49681494]
[1720717539957,0.319103,3133.7,3132.9,0.0843789]
[1720717540163,0.319103,3133.7,3133.1,1.49681494]
[1720717540363,0.3319103,3133.6,3133.1,1.49681494]
[1720717540560,3.0,3134.0,3133.3,1.49681494]
[1720717540762,3.0,3134.0,3132.7,3.19206]
[1720717540763,3.0,3134.0,3133.2,0.08427536]
[1720717540981,6.19082,3134.0,3133.4,0.08420634]
[1720717541183,3.0,3134.0,3133.2,1.49681494]
[1720717541403,3.0,3134.0,3133.5,0.08417183]
[1720717541601,0.3,3133.9,3133.2,1.49681494]
[1720717541912,3.19071,3134.1,3133.6,0.08413733]
[1720717542069,3.19071,3134.1,3133.2,1.49681494]
[1720717542269,3.0,3134.0,3133.1,7.47873576]
[1720717542462,3.0,3134.0,3133.3,0.08424085]
[1720717542791,3.0,3134.0,3133.4,0.08410431]
[1720717542967,0.619071,3133.9,3133.2,1.49681494]
[1720717543177,5.61475,3133.8,3133.5,0.0840698]
[1720717543374,3.0,3133.7,3133.1,7.47873576]
[1720717543580,3.0,3133.7,3133.6,0.0840353]
[1720717543781,2.35415,3133.7,3133.1,7.47873576]
[1720717543983,0.777785,3133.6,3133.1,7.47873576]
[1720717544508,3.777785,3133.6,3133.1,7.47873576]
[1720717544714,0.777785,3133.6,3133.1,7.47873576]
[1720717545191,0.619071,3133.9,3133.1,7.47873576]
[1720717545395,0.619071,3133.9,3133.0,1.49681494]
[1720717545396,3.19107,3133.8,3133.0,1.49681494]
[1720717545696,3.0,3133.7,3133.0,1.49681494]
[1720717545880,3.810031,3133.9,3133.0,1.49681494]
[1720717546094,3.0,3133.8,3133.0,1.49681494]
[1720717546417,0.3619071,3133.7,3133.0,1.49681494]
[1720717546923,3.5530371,3133.7,3132.8,21.2655507]
[1720717547233,2.2519,3133.5,3132.8,7.47873576]
[1720717547616,3.0,3133.6,3132.9,1.49681494]
[1720717547820,0.33619071,3133.5,3132.9,1.49681494]
[1720717548185,2.870971,3133.9,3133.1,1.49681494]
[1720717548427,3.19104,3133.8,3133.0,1.49681494]
[1720717548629,3.19104,3133.8,3132.8,8.9755507]
[1720717548935,0.00082896,3134.6,3133.1,1.49681494]
[1720717549135,0.00082896,3134.6,3133.5,3.1913]
[1720717549290,0.335051,3134.6,3133.9,1.49681494]
[1720717549733,0.00082896,3134.6,3133.9,1.49681494]
[1720717551053,0.00082896,3134.6,3133.7,10.66982576]
[1720717551054,0.00082896,3134.6,3134.1,1.49681494]
[1720717551555,0.00082896,3134.6,3134.1,4.68749494]
[1720717551911,0.00082896,3134.6,3134.1,1.49681494]
[1720717552146,0.00082896,3134.6,3133.8,1.49681494]
[1720717553011,0.00082896,3134.6,3133.7,8.9755507]
[1720717553214,0.31991286,3134.6,3133.7,8.9755507]
[1720717553407,3.51011286,3134.6,3133.7,7.47873576]
[1720717553617,3.0,3134.5,3133.7,7.47873576]
[1720717554028,3.19049,3134.4,3133.7,7.47873576]
[1720717554227,3.0,3134.3,3133.7,7.47873576]
[1720717554424,0.938098,3134.2,3133.8,0.08285905]
[1720717554715,0.938098,3134.2,3133.7,7.47873576]
[1720717554931,0.938098,3134.2,3133.9,0.08282456]
[1720717555248,0.938098,3134.2,3133.7,7.47873576]
[1720717555453,3.0,3134.5,3134.0,0.08279006]
[1720717555747,3.0,3134.5,3134.1,0.08275557]
[1720717555945,3.0,3134.5,3133.9,1.49681494]
[1720717555946,3.0,3134.5,3133.7,7.47873576]
[1720717556154,3.0,3134.5,3134.2,0.08272108]
[1720717556461,1.43732155,3134.4,3133.7,7.47873576]
[1720717556618,3.33199129,3134.4,3133.7,7.47873576]
[1720717556813,0.33199129,3134.4,3133.8,0.08285905]
[1720717557065,3.31991286,3134.6,3133.9,1.49681494]
[1720717557066,0.31991286,3134.6,3133.9,1.49681494]
[1720717557212,0.00082896,3134.6,3133.8,0.08285905]
[1720717557418,0.00082896,3134.6,3134.0,0.08279006]
[1720717557727,0.00082896,3134.6,3134.1,1.57957051]
[1720717558210,1.1051747,3134.5,3134.1,1.57957051]
[1720717558415,0.00082896,3134.6,3134.1,1.57957051]
[1720717558610,1.10517699,3134.5,3134.1,1.57957051]
[1720717558816,0.00082896,3134.6,3134.3,1.49681494]
[1720717559125,0.00082896,3134.6,3134.4,0.08242893]
[1720717559717,0.00082896,3134.6,3134.5,1.49681494]
[1720717560050,0.00082896,3134.6,3134.5,0.08236945]
[1720717560361,0.00082896,3134.6,3133.7,8.9755507]
[1720717560515,1.10511718,3134.5,3133.7,10.66984576]
[1720717560718,1.10521605,3134.4,3133.9,1.49681494]
[1720717561029,1.10521605,3134.3,3133.9,1.49681494]
[1720717561363,0.00082896,3134.6,3133.9,1.49681494]
[1720717561513,1.1052115,3134.5,3134.0,3.1908]
[1720717561714,0.00082896,3134.6,3133.9,1.49681494]
[1720717561909,1.10513865,3134.5,3134.1,1.49681494]
[1720717562132,1.10513865,3134.4,3134.3,1.49681494]
[1720717562356,0.00082896,3134.6,3134.5,1.49681494]
[1720717563215,0.00082896,3134.6,3134.3,1.49681494]
[1720717563463,0.00082896,3134.6,3134.1,1.49681494]
[1720717564059,1.10513625,3134.5,3134.2,0.0638104]
[1720717564212,0.00082896,3134.6,3134.5,1.49681494]
[1720717564557,0.00082896,3134.6,3134.2,1.49681494]
[1720717564726,0.00082896,3134.6,3134.0,1.49681494]
[1720717564931,1.10515954,3134.5,3134.0,1.49681494]
[1720717565150,0.00082896,3134.6,3134.0,1.49681494]
[1720717565442,1.10519923,3134.5,3134.0,1.49681494]
[1720717565641,0.00082896,3134.6,3134.0,1.49681494]
[1720717565843,1.10516344,3134.5,3134.0,1.49681494]
[1720717566155,1.10516344,3134.4,3133.9,1.49681494]
[1720717566359,1.10516344,3134.5,3133.9,1.49681494]
[1720717566716,1.10521687,3134.4,3133.9,1.49681494]
[1720717566954,1.10521528,3134.3,3133.9,1.49681494]
[1720717567113,0.00082896,3134.6,3133.7,7.47873576]
[1720717567312,0.00082896,3134.6,3133.9,1.49681494]
[1720717567313,1.10523148,3134.5,3133.9,1.49681494]
[1720717567566,1.10523148,3134.4,3134.3,1.49681494]
[1720717567720,0.00082896,3134.6,3134.5,1.49681494]
[1720717568152,0.00082896,3134.6,3134.1,3.19065]
[1720717568545,0.00082896,3134.6,3134.1,3.19063]
[1720717568861,0.00082896,3134.6,3134.5,1.49681494]
[1720717569070,5.7154813,3135.5,3134.3,6.38088]
[1720717569237,4.67654604,3135.4,3134.4,3.19039]
[1720717569575,1.10499791,3135.3,3134.4,0.07964306]
[1720717569750,1.10499791,3135.2,3134.5,6.38045]
[1720717569941,3.57154813,3135.4,3134.6,0.0795741]
[1720717569942,1.10499791,3135.1,3134.6,0.0795741]
[1720717570131,1.10497867,3135.0,3134.5,1.65281494]
[1720717570463,1.10497867,3134.9,3134.6,0.0795741]
[1720717570640,3.57154813,3135.4,3134.6,0.0795741]
[1720717570824,1.71475648,3135.3,3134.5,4.84304494]
[1720717571036,1.10498154,3135.2,3134.7,0.07953962]
[1720717571236,1.10498154,3135.2,3134.6,0.0795741]
[1720717571445,1.10498154,3135.2,3134.9,1.49681494]
[1720717571742,1.10498154,3135.2,3135.0,0.07943619]
[1720717571956,1.10498154,3135.4,3135.0,0.07943619]
[1720717572275,1.10498154,3135.3,3135.1,1.49681494]
[1720717572479,0.1142013,3135.5,3135.3,1.49681494]
[1720717572651,1.10482531,3135.4,3135.3,1.49681494]
[1720717572851,1.10482531,3135.4,3135.1,1.49681494]
[1720717573172,1.10482531,3135.3,3135.1,1.49681494]
[1720717573337,0.1142013,3135.5,3134.6,3.19011]
[1720717573551,1.10485098,3135.4,3134.7,1.49681494]
[1720717573750,0.1142013,3135.5,3135.3,0.31894874]
[1720717573987,1.10489038,3135.4,3135.3,0.31894874]
[1720717574487,0.1142013,3135.5,3135.3,3.50842874]
[1720717574651,0.1142013,3135.5,3135.4,1.49681494]
[1720717574846,0.1142013,3135.5,3135.3,0.31894874]
[1720717575666,0.1142013,3135.5,3135.3,1.81576368]
[1720717576274,0.1142013,3135.5,3135.3,0.31894874]
[1720717576577,1.10484586,3135.4,3135.3,0.31894874]
[1720717576784,1.10482136,3135.4,3135.3,0.31894874]
[1720717577492,4.60495236,3135.4,3135.3,0.31894874]
[1720717577692,8.26624773,3135.4,3135.3,0.31894874]
[1720717577892,8.26624773,3135.4,3134.5,0.156]
[1720717577893,3.18953,3135.3,3134.5,0.156]
[1720717578100,1.10482136,3135.2,3134.5,0.156]
[1720717578301,4.10482136,3135.2,3134.6,0.07946067]
[1720717578588,1.10482136,3135.1,3134.6,0.07946067]
[1720717578802,1.10482136,3135.1,3134.5,1.65281494]
[1720717579002,1.10482136,3135.1,3134.7,1.57624113]
[1720717579161,1.10482136,3135.3,3134.7,1.49681494]
[1720717579356,1.10482136,3135.3,3134.8,0.07939171]
[1720717579993,0.47191537,3135.4,3134.9,1.49681494]
[1720717580160,1.10495288,3135.2,3134.9,1.57617217]
[1720717580357,1.10495288,3135.1,3134.9,1.57617217]
[1720717580561,0.47191537,3135.4,3134.9,0.07935723]
[1720717580562,1.10495288,3135.3,3134.9,0.07935723]
[1720717580865,1.10495288,3135.3,3134.7,1.49681494]
[1720717581131,1.27405984,3135.3,3135.0,0.07932276]
[1720717581333,1.27405984,3135.3,3134.9,1.49681494]
[1720717581334,1.10495288,3135.2,3134.9,1.49681494]
[1720717581539,1.10495288,3135.2,3135.1,0.07928829]
[1720717581836,1.10495288,3135.2,3135.1,1.49681494]
[1720717582011,1.10495288,3135.4,3135.1,0.07928829]
[1720717582332,0.1142013,3135.5,3135.1,1.57610323]
[1720717582333,1.10495288,3135.3,3135.1,1.57610323]
[1720717582530,0.1142013,3135.5,3135.1,1.57610323]
[1720717582531,1.10495288,3135.2,3135.1,1.57610323]
[1720717583314,0.1142013,3135.5,3135.1,1.57610323]
[1720717583518,1.10487202,3135.4,3135.1,1.57610323]
[1720717583837,0.1142013,3135.5,3135.3,1.49681494]
[1720717584015,1.1048442,3135.4,3135.3,1.49681494]
[1720717584542,1.1048442,3135.4,3135.3,0.07921935]
[1720717584858,1.1048442,3135.4,3134.9,1.49681494]
[1720717584996,1.1048442,3135.3,3135.1,1.49681494]
[1720717585202,0.1142013,3135.5,3135.1,1.49681494]
[1720717585203,1.1048442,3135.4,3135.1,1.49681494]
[1720717585427,1.1048442,3135.3,3135.1,1.49681494]
[1720717585634,1.1048442,3135.4,3135.3,1.49681494]
[1720717585935,1.10485015,3135.4,3135.3,1.49681494]
[1720717586653,1.10485015,3135.4,3135.1,1.49681494]
[1720717587366,1.10485326,3135.3,3135.1,1.49681494]
[1720717588761,1.10485326,3135.3,3134.9,1.49681494]
[1720717588955,0.1142013,3135.5,3135.1,1.49681494]
[1720717589460,0.1142013,3135.5,3135.3,1.49681494]
[1720717590337,0.1142013,3135.5,3135.1,1.49681494]
[1720717591571,0.1142013,3135.5,3135.3,1.49681494]
[1720717593983,1.1047889,3135.4,3135.3,1.49681494]
[1720717594476,1.1047889,3135.4,3135.0,3.18977]
[1720717594477,1.1047889,3135.4,3135.1,1.49681494]
[1720717594686,0.1142013,3135.5,3135.3,1.49681494]
[1720717594887,1.10477445,3135.4,3135.3,1.49681494]
[1720717596393,1.10477178,3135.4,3135.3,1.49681494]
[1720717597665,1.10477178,3135.4,3135.3,7.09269494]
[1720717598468,1.10477178,3135.4,3135.3,10.28217494]
[1720717599100,1.10477178,3135.4,3135.3,7.09269494]
[1720717599430,1.10477178,3135.4,3135.3,10.36109638]
[1720717600521,0.1142013,3135.5,3135.4,6.37876]
[1720717600676,1.21881572,3135.5,3135.4,6.37876]
[1720717600871,1.21881572,3135.5,3135.4,6.45764698]
[1720717601287,0.1142013,3135.5,3135.4,9.64702698]
[1720717601491,0.1142013,3135.5,3135.4,10.19702698]
[1720717601714,0.1142013,3135.5,3135.4,11.69384192]
[1720717602020,0.1142013,3135.5,3135.4,10.19702698]
[1720717602237,0.1142013,3135.5,3135.4,7.95446192]
[1720717603627,0.1142013,3135.5,3135.4,4.76508192]
[1720717603789,0.1142013,3135.5,3135.4,1.57570192]
[1720717603990,0.1142013,3135.5,3135.4,4.76508192]
[1720717604420,0.1142013,3135.5,3135.4,1.57570192]
[1720717605905,1.21883898,3135.5,3135.4,0.07888698]
[1720717606428,1.21883898,3135.5,3135.4,0.0760214]
[1720717606745,0.1142013,3135.5,3135.4,0.0760214]
[1720717607102,1.2188892,3135.5,3135.4,0.0760214]
[1720717607316,1.2188892,3135.5,3135.4,3.2654014]
[1720717607532,0.1142013,3135.5,3135.4,3.2654014]
[1720717608101,0.1142013,3135.5,3135.4,0.0760214]
[1720717608422,0.1142013,3135.5,3135.4,6.4547814]
[1720717609000,0.1142013,3135.5,3135.4,8.8509814]
[1720717609432,0.98488415,3135.5,3135.4,8.8509814]
[1720717610803,0.98488415,3135.5,3135.4,7.15841634]
[1720717611442,0.98488415,3135.5,3135.4,4.76221634]
[1720717613734,2.08942346,3135.5,3135.4,4.76221634]
[1720717615321,0.98488415,3135.5,3135.4,4.76221634]
[1720717615729,2.08945455,3135.5,3135.4,4.76221634]
[1720717616769,2.08945531,3135.5,3135.4,4.76221634]
[1720717617315,2.08945531,3135.5,3135.4,1.57283634]
[1720717620159,2.08945531,3135.5,3135.4,7.95159634]
[1720717620472,2.08940576,3135.5,3135.4,4.76221634]
[1720717620842,0.98488415,3135.5,3135.4,4.76221634]
[1720717621167,0.98488415,3135.5,3135.4,7.95159634]
[1720717623346,0.98488415,3135.5,3135.4,10.95159634]
[1720717624174,0.98488415,3135.5,3135.4,14.14097634]
[1720717624371,0.98488415,3135.5,3135.4,16.54447634]
[1720717624672,0.98488415,3135.5,3135.4,20.28385634]
[1720717625265,4.15e-06,3135.5,3135.4,21.78385634]
[1720717625467,3.30693217,3138.3,3135.4,21.78385634]
[1720717625468,2.76218566,3138.3,3137.2,3.18749]
[1720717625651,1.10393536,3138.2,3137.5,1.49681494]
[1720717625859,1.10393536,3138.1,3137.6,3.32347599]
[1720717626040,1.10376001,3138.0,3137.6,3.25974205]
[1720717626243,1.10376001,3137.9,3137.8,6.37381]
[1720717626444,2.5631013,3138.7,3137.8,0.07253322]
[1720717626640,1.36006014,3138.6,3137.5,1.49681494]
[1720717626849,1.10375001,3138.5,3137.5,1.49681494]
[1720717627064,1.10375001,3138.5,3137.1,3.0]
[1720717627065,1.10375001,3138.5,3137.7,1.49681494]
[1720717627265,1.10375001,3138.5,3137.8,0.07220492]
[1720717627266,2.2686,3138.4,3137.8,0.07220492]
[1720717627472,0.00082192,3137.6,3137.5,1.49681494]
[1720717627781,0.00082192,3137.6,3137.5,1.56912311]
[1720717628275,0.00082192,3137.6,3137.5,0.07230817]
[1720717628433,1.1047033,3137.6,3136.9,1.49681494]
[1720717628770,1.10388138,3137.5,3137.0,0.07248028]
[1720717628971,2.255,3137.2,3137.0,0.07248028]
[1720717629130,2.255,3137.2,3135.8,21.2655507]
[1720717629131,11.750934,3137.1,3135.8,21.2655507]
[1720717629328,2.255,3136.8,3136.0,1.49681494]
[1720717629570,3.51492413,3136.7,3135.9,0.06555701]
[1720717629783,4.68141654,3136.6,3135.9,1.49681494]
[1720717629945,4.68141654,3136.6,3136.0,0.06552255]
[1720717630374,1.10442413,3136.5,3136.0,0.06552255]
[1720717630562,2.4681,3136.4,3136.0,0.06552255]
[1720717630881,2.4681,3136.4,3135.3,3.1894]
[1720717630882,1.10442413,3136.3,3135.6,7.47873576]
[1720717631094,0.35725241,3136.2,3135.7,0.06562591]
[1720717631386,1.10442413,3136.1,3135.7,0.06562591]
[1720717631587,2.3176,3136.0,3135.7,0.06562591]
[1720717631740,1.10442413,3135.9,3135.7,0.06562591]
[1720717632051,10.379751,3135.8,3135.2,7.47873576]
[1720717632251,10.379751,3135.8,3134.9,12.29]
[1720717632252,2.3176,3135.6,3134.9,19.76873576]
[1720717632658,1.10497711,3135.5,3134.7,1.49681494]
[1720717632868,1.10497711,3135.4,3134.7,1.49681494]
[1720717633244,3.0,3135.5,3134.7,1.49681494]
[1720717633473,2.2962,3135.2,3134.5,7.47873576]
[1720717633825,2.2962,3135.2,3134.2,12.29]
[1720717633826,3.006,3135.0,3134.2,7.47873576]
[1720717633939,1.10497747,3134.9,3134.2,10.66925576]
[1720717634142,1.10497747,3134.9,3134.7,1.49681494]
[1720717634385,2.2962,3135.7,3135.0,1.49681494]
[1720717634684,1.10487137,3135.6,3135.0,1.49681494]
[1720717634985,1.10487137,3135.5,3135.2,1.49681494]
[1720717635141,3.0,3135.6,3135.2,1.49681494]
[1720717635482,3.0,3135.6,3135.5,1.49681494]
[1720717635668,3.36325241,3136.2,3135.7,1.49681494]
[1720717635669,2.4229,3136.2,3135.7,1.49681494]
[1720717635874,2.66519,3136.2,3135.4,7.47873576]
[1720717636060,1.10463207,3136.1,3135.7,1.49681494]
[1720717636263,1.10463207,3136.0,3135.9,1.49681494]
[1720717636457,1.10456369,3136.0,3135.9,1.49681494]
[1720717636941,1.10456369,3136.0,3135.7,1.49681494]
[1720717637146,1.10456369,3136.0,3135.4,7.47873576]
[1720717637147,1.10456369,3135.9,3135.5,1.49681494]
[1720717637361,1.10456369,3135.9,3135.4,7.47873576]
[1720717637592,0.72641953,3135.8,3135.4,7.47873576]
[1720717637781,1.10456369,3135.7,3135.4,7.47873576]
[1720717637967,0.72641953,3135.6,3135.4,7.47873576]
[1720717638586,0.72641953,3135.5,3135.4,7.47873576]
[1720717638755,1.10474429,3135.5,3135.1,1.49681494]
[1720717638954,0.72642745,3135.4,3134.9,1.49681494]
[1720717639153,1.83136508,3135.3,3134.9,1.49681494]
[1720717639459,1.83140732,3135.2,3134.9,1.49681494]
[1720717639656,2.4004,3135.4,3134.9,1.49681494]
[1720717639869,1.83147029,3135.3,3135.1,1.49681494]
[1720717640060,2.4004,3135.4,3135.1,1.49681494]
[1720717640061,0.7265765,3135.2,3135.1,1.49681494]
[1720717640377,2.4004,3135.4,3135.1,1.49681494]
[1720717640378,0.7265765,3135.3,3135.1,1.49681494]
[1720717640741,0.7265765,3135.3,3134.9,1.49681494]
[1720717640939,1.10490891,3135.2,3134.5,21.2655507]
[1720717641175,2.4004,3135.4,3134.9,1.49681494]
[1720717641387,1.83147513,3135.3,3134.9,1.49681494]
[1720717641572,0.72657587,3135.2,3134.9,1.49681494]
[1720717641773,2.64044,3135.4,3134.9,1.49681494]
[1720717641956,8.57092678,3135.3,3134.5,7.47873576]
[1720717642157,1.83143678,3135.2,3134.5,7.47873576]
[1720717642359,1.83143678,3135.1,3134.5,8.9755507]
[1720717642679,1.83167944,3135.0,3134.5,8.9755507]
[1720717642864,0.72667513,3134.9,3134.5,8.9755507]
[1720717643071,1.04778768,3135.2,3134.7,1.49681494]
[1720717643269,1.83167905,3135.1,3134.7,1.49681494]
[1720717643584,0.72667493,3135.0,3134.8,0.06665228]
[1720717644842,0.72667493,3135.0,3134.5,8.9755507]
[1720717645047,0.72667493,3135.0,3134.6,0.06672124]
[1720717645242,0.72667493,3135.0,3134.5,8.9755507]
[1720717645448,0.72667493,3135.0,3134.6,0.06672124]
[1720717645764,0.58794667,3135.1,3134.5,7.47873576]
[1720717645963,0.72667022,3135.0,3134.7,0.06668676]
[1720717646274,0.72667022,3135.0,3134.8,0.06665228]
[1720717646476,1.04778768,3135.2,3134.8,1.49681494]
[1720717646702,0.7266252,3135.1,3134.9,0.06661781]
[1720717646873,1.04778768,3135.2,3134.9,0.06661781]
[1720717647090,0.72664529,3135.1,3134.9,0.06661781]
[1720717647883,1.04778768,3135.2,3134.9,0.06661781]
[1720717648090,0.7266384,3135.1,3134.9,0.06661781]
[1720717648249,2.2695,3135.7,3134.9,0.06661781]
[1720717648450,1.8315089,3135.6,3134.9,0.06661781]
[1720717648688,1.8315089,3135.5,3134.9,0.06661781]
[1720717648989,0.72660232,3135.4,3134.9,0.06661781]
[1720717649207,0.41010089,3135.5,3134.9,0.06661781]
[1720717649353,0.72661638,3135.4,3135.0,1.49681494]
[1720717649695,0.72661638,3135.4,3135.1,0.06667762]
[1720717650266,0.72661638,3135.4,3135.2,1.49681494]
[1720717650471,0.41010089,3135.5,3135.3,0.06670285]
[1720717650798,0.72655586,3135.4,3135.2,1.49681494]
[1720717651151,0.41010089,3135.5,3135.2,1.49681494]
[1720717651754,0.41010089,3135.5,3135.0,1.49681494]
[1720717651991,2.17247069,3135.4,3134.7,1.49681494]
[1720717652290,0.72655553,3135.3,3134.7,1.49681494]
[1720717652496,0.34101009,3135.4,3134.7,1.49681494]
[1720717652677,0.72660448,3135.3,3134.7,1.49681494]
[1720717652863,3.0,3135.6,3134.9,1.49681494]
[1720717653069,1.83139644,3135.5,3135.1,1.49681494]
[1720717653255,3.0,3135.6,3135.1,1.49681494]
[1720717653574,1.83141432,3135.5,3134.8,1.49681494]
[1720717653791,1.83141432,3135.4,3134.8,1.49681494]
[1720717654100,1.83141432,3135.3,3134.8,1.49681494]
[1720717654306,3.18923,3135.6,3134.8,1.49681494]
[1720717654307,1.83141432,3135.2,3134.8,1.49681494]
[1720717654466,1.83141432,3135.1,3134.8,1.49681494]
[1720717654793,3.0,3135.5,3134.8,1.49681494]
[1720717655006,1.8315819,3135.4,3135.0,1.49681494]
[1720717655167,1.8315819,3135.3,3135.0,1.49681494]
[1720717655363,0.845867,3135.5,3135.0,1.49681494]
[1720717655364,1.8315819,3135.2,3135.0,1.49681494]
[1720717655567,3.0,3135.6,3134.9,1.49681494]
[1720717655800,1.10487489,3135.5,3135.3,1.49681494]
[1720717656089,3.0,3135.6,3135.3,1.49681494]
[1720717656289,3.0,3135.6,3135.5,1.49681494]
[1720717656507,1.10477504,3135.6,3135.5,1.49681494]
[1720717656720,1.10477762,3135.6,3135.5,1.49681494]
[1720717658468,1.10477762,3135.6,3135.5,1.56118699]
[1720717659317,3.0,3136.3,3135.8,1.49681494]
[1720717659535,3.0,3136.3,3135.5,1.49681494]
[1720717659536,14.24288941,3136.2,3135.5,1.49681494]
[1720717659673,4.83105941,3136.1,3135.5,1.49681494]
[1720717659873,1.83105941,3136.0,3135.5,1.49681494]
[1720717660103,1.83105941,3135.9,3135.5,1.49681494]
[1720717660304,1.83105941,3135.8,3135.5,1.49681494]
[1720717660594,1.10470877,3135.7,3135.5,1.49681494]
[1720717660797,1.10470877,3135.6,3135.5,1.49681494]
[1720717660998,1.10470877,3136.0,3135.5,1.49681494]
[1720717661239,0.72645861,3135.9,3135.5,1.49681494]
[1720717661435,1.10470877,3136.1,3135.5,1.49681494]
[1720717661436,0.72645861,3135.8,3135.5,1.49681494]
[1720717661733,1.83116738,3135.7,3135.3,1.49681494]
[1720717661937,0.18311674,3135.8,3135.3,1.49681494]
[1720717661938,1.83116738,3135.6,3135.3,1.49681494]
[1720717662146,1.10470877,3135.5,3135.3,1.49681494]
[1720717662445,1.10470877,3135.4,3135.1,1.49681494]
[1720717662599,2.4315,3135.6,3134.9,8.9755507]
[1720717662801,0.72656485,3135.5,3135.0,1.49681494]
[1720717663011,4.83145246,3135.5,3135.0,1.49681494]
[1720717663217,1.83145246,3135.4,3135.0,1.49681494]
[1720717663443,1.10488761,3135.3,3134.9,7.47873576]
[1720717663741,3.0,3135.5,3134.6,1.49681494]
[1720717663742,1.10488761,3135.2,3134.6,1.49681494]
[1720717663942,1.10488761,3135.4,3134.6,1.49681494]
[1720717664115,1.10488761,3135.3,3135.0,1.49681494]
[1720717664427,1.10488761,3135.2,3135.0,1.49681494]
[1720717664636,1.10488761,3135.4,3135.0,1.49681494]
[1720717664795,0.7266045,3135.3,3134.8,1.49681494]
[1720717664992,1.10488761,3135.2,3134.8,1.49681494]
[1720717665420,4.10488761,3135.3,3134.8,1.49681494]
[1720717665633,8.02821287,3135.2,3134.6,1.49681494]
[1720717665840,5.93439416,3135.1,3134.5,7.47873576]
[1720717666039,2.313,3134.9,3134.2,7.47873576]
[1720717666544,1.83189577,3134.8,3134.2,7.47873576]
[1720717666699,1.83189577,3134.7,3134.2,7.47873576]
[1720717666898,2.93478535,3134.6,3134.2,7.47873576]
[1720717667098,4.83189577,3134.5,3134.2,7.47873576]
[1720717667333,1.10511553,3134.4,3133.7,8.9755507]
[1720717667699,1.10511553,3134.3,3134.0,1.49681494]
[1720717668012,1.10511553,3134.2,3134.0,1.49681494]
[1720717668216,1.10511553,3134.5,3134.0,1.49681494]
[1720717668412,1.10511553,3134.4,3134.0,1.49681494]
[1720717669743,1.10525999,3134.3,3134.0,1.49681494]
[1720717669912,1.10525999,3134.2,3134.0,1.49681494]
[1720717670112,1.10525999,3134.4,3134.0,1.49681494]
[1720717670320,1.10526945,3134.3,3134.0,1.49681494]
[1720717670632,1.10288958,3134.6,3134.0,1.49681494]
[1720717670633,1.10526945,3134.2,3134.0,1.49681494]
[1720717670827,1.10526945,3134.1,3134.0,1.49681494]
[1720717672922,3.0,3134.7,3134.0,1.49681494]
[1720717673108,3.07093045,3134.6,3134.0,1.49681494]
[1720717673296,4.83222245,3134.5,3134.0,1.49681494]
[1720717673500,4.83222245,3134.4,3134.0,1.49681494]
[1720717673701,1.83222245,3134.3,3134.0,1.49681494]
[1720717673922,1.83222245,3134.2,3134.0,1.49681494]
[1720717674114,1.83222245,3134.1,3134.0,1.49681494]
[1720717674315,1.83222245,3134.1,3134.0,1.5556886]
[1720717675511,1.83222245,3134.1,3134.0,0.05887366]
[1720717675825,4.05287445,3134.1,3133.8,1.49681494]
[1720717676027,2.4742,3134.2,3134.0,0.05910629]
[1720717676218,7.26319425,3134.1,3133.9,0.05914078]
[1720717676422,2.4742,3134.2,3133.5,1.49681494]
[1720717676423,1.83244669,3134.0,3133.5,1.49681494]
[1720717676731,1.83244669,3133.9,3133.5,1.49681494]
[1720717676934,1.83244669,3133.8,3133.7,1.49681494]
[1720717677449,1.83244669,3133.8,3133.5,1.49681494]
[1720717677742,3.0,3134.1,3133.7,1.49681494]
[1720717677943,1.83250081,3134.0,3133.7,1.49681494]
[1720717678243,1.83250081,3133.9,3133.7,1.49681494]
[1720717678410,1.83250081,3133.8,3133.7,1.49681494]
[1720717680036,1.83249278,3133.8,3133.7,1.49681494]
[1720717680409,1.83248596,3133.8,3133.7,1.49681494]
[1720717680942,0.72706699,3133.8,3133.7,1.49681494]